bitfinex/quotes_SOLUSD_20241107
["timestamp","ask_amount","ask_price","bid_price","bid_amount"]
[1730979124224,21.364609,187.25,187.16,7.93640689]
[1730979124404,21.364609,187.25,187.18,7.93640689]
[1730979124718,7.93640689,187.23,187.17,7.93640689]
[1730979124903,21.364609,187.25,187.17,7.93640689]
[1730979125101,7.93640689,187.23,187.17,7.93640689]
[1730979127208,7.93640689,187.23,187.15,21.7795]
[1730979127402,7.93640689,187.23,187.17,7.93640689]
[1730979128102,7.93640689,187.23,187.18,7.93640689]
[1730979133705,0.12549,187.25,187.18,7.93640689]
[1730979133905,7.93640689,187.24,187.18,7.93640689]
[1730979136005,163.95276108,187.3,187.19,7.93640689]
[1730979136210,7.93640689,187.27,187.21,30.64540689]
[1730979136607,7.93640689,187.26,187.21,30.64540689]
[1730979137107,0.12549,187.3,187.21,30.64540689]
[1730979137307,7.93640689,187.26,187.21,22.709]
[1730979140330,7.93640689,187.26,187.21,30.64540689]
[1730979141322,1.79376506,187.3,187.22,7.93640689]
[1730979141515,7.93640689,187.27,187.21,30.64540689]
[1730979141826,7.93640689,187.26,187.21,22.709]
[1730979142129,7.93640689,187.27,187.21,30.64540689]
[1730979146435,7.93640689,187.28,187.22,7.93640689]
[1730979146616,1.79376506,187.3,187.23,7.93640689]
[1730979146817,7.93640689,187.29,187.22,7.93640689]
[1730979147017,7.93640689,187.28,187.22,7.93640689]
[1730979147419,1.79376506,187.3,187.23,7.93640689]
[1730979147634,7.93640689,187.29,187.23,7.93640689]
[1730979148915,0.12549,187.32,187.23,7.93640689]
[1730979149137,7.93640689,187.29,187.23,7.93640689]
[1730979150438,7.93640689,187.28,187.21,22.709]
[1730979150626,7.93640689,187.25,187.21,22.709]
[1730979152738,7.93640689,187.24,187.21,22.709]
[1730979154836,7.93640689,187.25,187.21,22.709]
[1730979155330,7.93640689,187.26,187.21,22.709]
[1730979156831,7.93640689,187.27,187.21,22.709]
[1730979157137,5.55532087,187.33,187.22,7.93640689]
[1730979157342,7.93640689,187.3,187.23,7.93640689]
[1730979157538,7.93640689,187.29,187.23,7.93640689]
[1730979158342,7.93640689,187.26,187.21,22.709]
[1730979158519,7.93640689,187.27,187.21,22.709]
[1730979160932,7.93640689,187.26,187.21,22.709]
[1730979163342,7.93640689,187.25,187.21,22.709]
[1730979164140,7.93640689,187.24,187.17,30.55580689]
[1730979165140,7.93640689,187.24,187.17,22.6194]
[1730979165340,7.93640689,187.24,187.18,7.93640689]
[1730979165646,7.93640689,187.25,187.18,7.93640689]
[1730979165850,7.93640689,187.24,187.18,7.93640689]
[1730979167951,7.93640689,187.25,187.18,7.93640689]
[1730979172660,7.93640689,187.26,187.2,7.93640689]
[1730979173234,7.93640689,187.25,187.19,7.93640689]
[1730979174253,0.12549,187.29,187.2,7.93640689]
[1730979174449,7.93640689,187.26,187.2,7.93640689]
[1730979176259,0.12549,187.3,187.2,7.93640689]
[1730979176463,7.93640689,187.27,187.2,7.93640689]
[1730979177359,7.93640689,187.27,187.17,22.6194]
[1730979177556,0.12549,187.3,187.2,7.93640689]
[1730979177750,7.93640689,187.27,187.2,7.93640689]
[1730979183545,7.93640689,187.27,187.21,7.93640689]
[1730979183752,158.4,187.31,187.22,7.93640689]
[1730979183964,7.93640689,187.29,187.23,7.93640689]
[1730979184380,7.93640689,187.28,187.22,7.93640689]
[1730979185046,7.93640689,187.27,187.21,7.93640689]
[1730979185550,7.93640689,187.26,187.18,23.776884]
[1730979185865,7.93640689,187.26,187.2,7.93640689]
[1730979186169,7.93640689,187.28,187.22,7.93640689]
[1730979186859,6.74018952,187.28,187.22,7.93640689]
[1730979187073,6.74018952,187.28,187.21,7.93640689]
[1730979187362,7.93640689,187.27,187.21,7.93640689]
[1730979190161,0.12549,187.31,187.21,7.93640689]
[1730979190162,7.93640689,187.28,187.21,7.93640689]
[1730979191548,7.93640689,187.29,187.22,7.93640689]
[1730979192168,0.12549,187.28,187.22,7.93640689]
[1730979193651,160.05835128,187.32,187.23,7.93640689]
[1730979193652,7.93640689,187.3,187.23,7.93640689]
[1730979194151,0.12549,187.29,187.23,29.18130689]
[1730979194353,158.6,187.39,187.27,7.93640689]
[1730979194665,163.96052539,187.38,187.31,7.93640689]
[1730979194857,7.93640689,187.37,187.31,7.93640689]
[1730979195051,0.12549,187.36,187.31,7.93640689]
[1730979196172,7.93640689,187.33,187.27,7.93640689]
[1730979197055,7.93640689,187.33,187.26,7.93640689]
[1730979199276,0.12549,187.33,187.28,7.93640689]
[1730979199449,0.12549,187.33,187.29,7.93640689]
[1730979199650,0.12549,187.34,187.29,7.93640689]
[1730979200771,0.12549,187.33,187.28,7.93640689]
[1730979201779,7.93640689,187.35,187.28,7.93640689]
[1730979202280,7.93640689,187.35,187.29,7.93640689]
[1730979203076,7.93640689,187.35,187.28,7.93640689]
[1730979203268,7.93640689,187.34,187.28,7.93640689]
[1730979203760,7.93640689,187.35,187.29,7.93640689]
[1730979204270,7.93640689,187.34,187.28,7.93640689]
[1730979204675,7.93640689,187.29,187.23,22.0853]
[1730979204977,7.93640689,187.3,187.24,7.93640689]
[1730979205278,7.93640689,187.31,187.24,7.93640689]
[1730979206077,7.93640689,187.31,187.25,7.93640689]
[1730979206875,7.93640689,187.3,187.24,7.93640689]
[1730979207062,7.93640689,187.3,187.23,22.0853]
[1730979207258,7.93640689,187.3,187.23,30.02170689]
[1730979209783,7.93640689,187.3,187.23,22.0853]
[1730979209990,7.93640689,187.3,187.24,7.93640689]
[1730979212083,7.93640689,187.3,187.23,22.0853]
[1730979212084,7.93640689,187.31,187.25,7.93640689]
[1730979213163,7.93640689,187.3,187.25,7.93640689]
[1730979213362,7.93640689,187.3,187.23,22.0853]
[1730979213563,7.93640689,187.3,187.24,7.93640689]
[1730979214184,7.93640689,187.3,187.25,7.93640689]
[1730979218863,7.93640689,187.3,187.24,7.93640689]
[1730979219985,7.93640689,187.29,187.23,22.0853]
[1730979220192,5.78307456,187.35,187.15,5.76128534]
[1730979220193,7.93640689,187.24,187.18,7.93640689]
[1730979220362,7.93640689,187.22,187.16,22.1448]
[1730979220565,7.93640689,187.21,187.16,22.1448]
[1730979223791,7.93640689,187.22,187.16,30.08120689]
[1730979223991,1.74505685,187.29,187.16,30.08120689]
[1730979223992,7.93640689,187.25,187.19,7.93640689]
[1730979224374,7.93640689,187.26,187.2,7.93640689]
[1730979225596,7.93640689,187.25,187.19,7.93640689]
[1730979225793,7.93640689,187.24,187.18,7.93640689]
[1730979227496,7.93640689,187.25,187.19,7.93640689]
[1730979227801,7.93640689,187.26,187.2,7.93640689]
[1730979228109,7.93640689,187.27,187.21,7.93640689]
[1730979230390,7.93640689,187.27,187.17,23.776884]
[1730979230786,7.93640689,187.27,187.21,7.93640689]
[1730979231499,0.12549,187.3,187.22,7.93640689]
[1730979231793,5.54806538,187.33,187.22,7.93640689]
[1730979231985,7.93640689,187.29,187.23,7.93640689]
[1730979232191,7.93640689,187.28,187.17,23.776884]
[1730979232394,7.93640689,187.28,187.22,7.93640689]
[1730979233769,7.93640689,187.29,187.23,7.93640689]
[1730979234581,7.93640689,187.29,187.23,30.68660689]
[1730979234790,7.93640689,187.3,187.24,7.93640689]
[1730979234991,21.357336,187.36,187.28,7.93640689]
[1730979235193,158.4,187.39,187.28,7.93640689]
[1730979235501,7.93640689,187.35,187.29,7.93640689]
[1730979236797,5.54738805,187.38,187.23,22.7502]
[1730979236798,7.93640689,187.36,187.3,7.93640689]
[1730979238903,7.93640689,187.36,187.29,7.93640689]
[1730979240298,7.93640689,187.35,187.29,7.93640689]
[1730979240498,0.12549,187.38,187.3,7.93640689]
[1730979240700,26.89751898,187.41,187.31,7.93640689]
[1730979240701,5.54570098,187.41,187.31,7.93640689]
[1730979240896,7.93640689,187.36,187.3,30.23560689]
[1730979241087,7.93640689,187.36,187.3,22.2992]
[1730979241596,7.93640689,187.34,187.3,22.2992]
[1730979243487,7.93640689,187.35,187.3,22.2992]
[1730979243879,7.93640689,187.34,187.3,22.2992]
[1730979244294,7.93640689,187.35,187.3,22.2992]
[1730979247607,158.52549,187.4,187.3,22.2992]
[1730979247776,7.93640689,187.35,187.3,22.2992]
[1730979247980,7.93640689,187.33,187.3,22.2992]
[1730979249396,7.93640689,187.32,187.3,22.2992]
[1730979249596,7.93640689,187.32,187.26,22.7297]
[1730979249900,7.93640689,187.31,187.26,22.7297]
[1730979250786,7.93640689,187.3,187.26,22.7297]
[1730979256291,7.93640689,187.29,187.26,22.7297]
[1730979256492,7.93640689,187.28,187.26,22.7297]
[1730979256787,7.93640689,187.3,187.26,22.7297]
[1730979257196,7.93640689,187.29,187.26,22.7297]
[1730979268314,7.93640689,187.3,187.26,22.7297]
[1730979269720,7.93640689,187.33,187.27,7.93640689]
[1730979271722,7.93640689,187.34,187.27,7.93640689]
[1730979271905,7.93640689,187.34,187.28,7.93640689]
[1730979272109,7.93640689,187.34,187.27,31.71329089]
[1730979274702,7.93640689,187.33,187.27,31.71329089]
[1730979276828,0.12549,187.37,187.27,31.71329089]
[1730979277006,7.93640689,187.33,187.27,31.71329089]
[1730979279406,7.93640689,187.34,187.28,7.93640689]
[1730979279613,7.93640689,187.33,187.27,31.71329089]
[1730979280606,7.93640689,187.33,187.27,23.776884]
[1730979280816,7.93640689,187.32,187.27,23.776884]
[1730979281009,7.93640689,187.33,187.27,23.776884]
[1730979284030,7.93640689,187.3,187.26,22.7297]
[1730979285525,7.93640689,187.29,187.26,22.7297]
[1730979285727,7.93640689,187.29,187.23,23.776884]
[1730979285912,7.93640689,187.28,187.22,29.82820689]
[1730979286929,7.93640689,187.29,187.23,5.04056396]
[1730979287131,7.93640689,187.25,187.23,5.04056396]
[1730979287309,7.93640689,187.25,187.22,21.8918]
[1730979287510,7.93640689,187.27,187.22,21.8918]
[1730979287910,7.93640689,187.27,187.23,5.04241961]
[1730979288327,0.12549,187.34,187.22,21.8918]
[1730979288522,7.93640689,187.28,187.22,29.82820689]
[1730979288839,7.93640689,187.29,187.23,7.93640689]
[1730979289020,7.93640689,187.28,187.22,29.82820689]
[1730979290420,7.93640689,187.26,187.22,21.8918]
[1730979290730,23.902374,187.35,187.22,29.82820689]
[1730979290921,7.93640689,187.28,187.22,29.82820689]
[1730979293627,0.12549,187.33,187.22,29.82820689]
[1730979293833,7.93640689,187.28,187.22,29.82820689]
[1730979294137,7.93640689,187.28,187.22,21.8918]
[1730979294341,7.93640689,187.28,187.22,29.82820689]
[1730979296439,0.12549,187.33,187.22,29.82820689]
[1730979296641,7.93640689,187.28,187.22,29.82820689]
[1730979296937,7.93640689,187.27,187.22,21.8918]
[1730979297438,7.93640689,187.25,187.22,21.8918]
[1730979297935,7.93640689,187.26,187.22,21.8918]
[1730979298642,7.93640689,187.27,187.22,21.8918]
[1730979299746,158.4,187.32,187.22,29.82820689]
[1730979299921,7.93640689,187.28,187.22,29.82820689]
[1730979300322,7.93640689,187.27,187.22,21.8918]
[1730979301250,7.93640689,187.28,187.22,21.8918]
[1730979301445,7.93640689,187.27,187.22,21.8918]
[1730979303656,7.93640689,187.28,187.22,29.82820689]
[1730979304549,7.93640689,187.27,187.22,21.8918]
[1730979304732,0.12549,187.34,187.22,21.8918]
[1730979304733,7.93640689,187.26,187.22,21.8918]
[1730979304924,7.93640689,187.27,187.22,21.8918]
[1730979306338,163.96339,187.34,187.22,21.8918]
[1730979306339,7.93640689,187.25,187.22,21.8918]
[1730979307048,7.93640689,187.26,187.22,21.8918]
[1730979309152,7.93640689,187.24,187.19,23.776884]
[1730979310044,7.93640689,187.24,187.18,21.1771]
[1730979310349,7.93640689,187.23,187.18,21.1771]
[1730979310556,0.12549,187.27,187.1,31.84562756]
[1730979310557,7.93640689,187.21,187.14,21.1771]
[1730979310848,7.93640689,187.2,187.14,29.11350689]
[1730979311055,7.93640689,187.19,187.14,21.1771]
[1730979311629,7.93640689,187.18,187.14,21.1771]
[1730979311843,7.93640689,187.19,187.14,21.1771]
[1730979312550,7.93640689,187.18,187.14,21.1771]
[1730979313665,7.93640689,187.19,187.14,21.1771]
[1730979317747,7.93640689,187.18,187.14,21.1771]
[1730979317954,7.93640689,187.17,187.14,21.1771]
[1730979319757,7.93640689,187.16,187.09,27.75749246]
[1730979319954,7.93640689,187.16,187.11,7.93640689]
[1730979320157,7.93640689,187.15,187.09,27.75749246]
[1730979320348,7.93640689,187.13,187.09,22.2294]
[1730979321159,7.93640689,187.14,187.09,22.2294]
[1730979322357,7.93640689,187.15,187.09,30.16580689]
[1730979322543,158.4,187.22,187.11,7.93640689]
[1730979322747,7.93640689,187.17,187.11,7.93640689]
[1730979324348,0.12549,187.23,187.11,7.93640689]
[1730979324865,7.93640689,187.17,187.11,7.93640689]
[1730979329172,7.93640689,187.16,187.1,31.71329089]
[1730979333867,7.93640689,187.17,187.1,31.71329089]
[1730979337281,7.93640689,187.17,187.11,7.93640689]
[1730979337648,5.55531258,187.25,187.13,7.93640689]
[1730979337848,7.93640689,187.21,187.15,30.56120689]
[1730979338051,158.4,187.26,187.15,30.56120689]
[1730979338052,7.93640689,187.2,187.15,22.6248]
[1730979338476,7.93640689,187.19,187.15,22.6248]
[1730979339168,0.12549,187.25,187.15,22.6248]
[1730979339484,7.93640689,187.19,187.15,22.6248]
[1730979341569,7.93640689,187.2,187.15,22.6248]
[1730979342077,0.12549,187.25,187.15,22.6248]
[1730979342270,7.93640689,187.2,187.15,22.6248]
[1730979343175,7.93640689,187.21,187.15,30.56120689]
[1730979343475,160.04291655,187.26,187.15,30.56120689]
[1730979343476,7.93640689,187.22,187.16,7.93640689]
[1730979344070,1.61242951,187.27,187.17,31.71329089]
[1730979344389,7.93640689,187.24,187.17,31.71329089]
[1730979344766,7.93640689,187.23,187.17,31.71329089]
[1730979345163,7.93640689,187.23,187.16,23.776884]
[1730979345372,7.93640689,187.23,187.17,7.93640689]
[1730979347589,0.12549,187.29,187.19,7.93640689]
[1730979347590,1.76339591,187.29,187.19,7.93640689]
[1730979347769,5.55236682,187.3,187.2,7.93640689]
[1730979347977,5.3382,187.33,187.21,7.93640689]
[1730979347978,7.93640689,187.27,187.21,7.93640689]
[1730979348701,1.65207634,187.33,187.23,7.93640689]
[1730979348988,7.93640689,187.29,187.23,7.93640689]
[1730979349190,7.93640689,187.28,187.22,31.71329089]
[1730979350989,7.93640689,187.29,187.23,7.93640689]
[1730979351377,7.93640689,187.28,187.22,31.71329089]
[1730979353093,7.93640689,187.3,187.24,31.71329089]
[1730979353270,7.93640689,187.31,187.25,7.93640689]
[1730979356384,7.93640689,187.28,187.24,23.776884]
[1730979356577,7.93640689,187.27,187.23,21.9767]
[1730979357793,7.93640689,187.28,187.23,21.9767]
[1730979357989,7.93640689,187.28,187.23,27.00254196]
[1730979358296,7.93640689,187.28,187.23,21.9767]
[1730979359781,7.93640689,187.26,187.19,7.93640689]
[1730979359990,7.93640689,187.26,187.2,5.02531185]
[1730979360192,7.93640689,187.26,187.21,5.02531185]
[1730979360392,7.93640689,187.26,187.2,5.02531185]
[1730979360579,7.93640689,187.26,187.21,5.02531185]
[1730979360780,7.93640689,187.25,187.2,5.02531185]
[1730979361199,7.93640689,187.25,187.2,23.776884]
[1730979361405,7.93640689,187.25,187.2,5.02550395]
[1730979361902,7.93640689,187.25,187.2,5.02559111]
[1730979362296,7.93640689,187.26,187.2,5.02559111]
[1730979362507,7.93640689,187.27,187.21,7.93640689]
[1730979363592,7.93640689,187.3,187.23,7.93640689]
[1730979363784,7.93640689,187.3,187.24,31.71329089]
[1730979364404,7.93640689,187.3,187.23,23.776884]
[1730979364586,7.93640689,187.29,187.23,31.71329089]
[1730979365722,5.3373,187.36,187.22,21.2934]
[1730979365723,7.93640689,187.27,187.22,21.2934]
[1730979369303,7.93640689,187.26,187.22,21.2934]
[1730979371293,7.93640689,187.27,187.22,21.2934]
[1730979373237,7.93640689,187.28,187.22,29.22980689]
[1730979373513,0.12549,187.34,187.21,7.93640689]
[1730979373514,7.93640689,187.27,187.21,7.93640689]
[1730979373711,7.93640689,187.26,187.22,23.776884]
[1730979374419,7.93640689,187.26,187.21,23.776884]
[1730979374591,5.56349,187.34,187.2,7.93640689]
[1730979374592,7.93640689,187.23,187.2,5.02143495]
[1730979374786,7.93640689,187.23,187.16,12.95784184]
[1730979375000,7.93640689,187.22,187.17,5.02143495]
[1730979375386,7.93640689,187.2,187.17,5.02143495]
[1730979375587,0.1,187.28,187.11,27.45384195]
[1730979375588,7.93640689,187.18,187.12,12.95784184]
[1730979375823,7.93640689,187.18,187.13,5.02334436]
[1730979376016,7.93640689,187.19,187.13,12.95975125]
[1730979376312,7.93640689,187.18,187.12,5.02334436]
[1730979376505,7.93640689,187.19,187.12,12.95975125]
[1730979376906,7.93640689,187.19,187.13,31.71329089]
[1730979377126,7.93640689,187.2,187.14,12.95975125]
[1730979378527,6.98765589,187.28,187.15,31.71329089]
[1730979378702,7.93640689,187.21,187.15,31.71329089]
[1730979378902,7.93640689,187.22,187.15,31.71329089]
[1730979379103,7.93640689,187.22,187.16,5.02330963]
[1730979379325,7.93640689,187.22,187.15,31.71329089]
[1730979379530,7.93640689,187.22,187.16,5.02309049]
[1730979379836,7.93640689,187.22,187.16,12.95949738]
[1730979382929,7.93640689,187.22,187.16,12.96167611]
[1730979385229,7.93640689,187.22,187.16,5.02526922]
[1730979385417,7.93640689,187.21,187.16,5.02526922]
[1730979386428,7.93640689,187.21,187.16,5.02670903]
[1730979386722,7.93640689,187.21,187.15,5.02670903]
[1730979387030,7.93640689,187.2,187.13,7.93640689]
[1730979387209,7.93640689,187.2,187.14,23.776884]
[1730979392119,7.93640689,187.2,187.14,31.71329089]
[1730979393016,7.93640689,187.21,187.15,7.93640689]
[1730979394635,7.93640689,187.17,187.12,23.776884]
[1730979395342,7.93640689,187.18,187.12,31.71329089]
[1730979396225,7.93640689,187.19,187.13,7.93640689]
[1730979397038,5.3401,187.27,187.14,7.93640689]
[1730979397243,7.93640689,187.21,187.14,7.93640689]
[1730979399341,7.93640689,187.21,187.15,7.93640689]
[1730979400741,7.93640689,187.21,187.12,23.776884]
[1730979400923,7.93640689,187.21,187.15,7.93640689]
[1730979402234,7.93640689,187.21,187.15,23.776884]
[1730979403521,7.93640689,187.19,187.13,7.93640689]
[1730979403723,7.93640689,187.17,187.12,23.776884]
[1730979403938,7.93640689,187.17,187.11,24.29410689]
[1730979404636,7.93640689,187.18,187.12,7.93640689]
[1730979405257,7.93640689,187.18,187.13,23.776884]
[1730979406442,7.93640689,187.19,187.13,23.776884]
[1730979406639,0.12549,187.23,187.13,23.776884]
[1730979406822,7.93640689,187.19,187.13,23.776884]
[1730979409441,7.93640689,187.19,187.13,31.71329089]
[1730979409640,7.93640689,187.19,187.13,37.92419089]
[1730979410250,7.93640689,187.2,187.14,7.93640689]
[1730979411743,1.58858512,187.25,187.15,23.776884]
[1730979412047,7.93640689,187.23,187.16,7.93640689]
[1730979412545,7.93640689,187.23,187.17,23.776884]
[1730979412743,7.93640689,187.24,187.18,24.57660689]
[1730979412948,7.93640689,187.26,187.2,7.93640689]
[1730979413263,7.93640689,187.27,187.21,7.93640689]
[1730979413628,7.93640689,187.28,187.22,7.93640689]
[1730979413822,7.93640689,187.28,187.2,6.5666]
[1730979413823,1.66913169,187.33,187.23,7.93640689]
[1730979414048,21.359777,187.34,187.23,7.93640689]
[1730979414049,7.93640689,187.29,187.23,7.93640689]
[1730979414340,0.12549,187.33,187.23,7.93640689]
[1730979414549,7.93640689,187.29,187.23,7.93640689]
[1730979415137,0.12549,187.33,187.24,7.93640689]
[1730979415352,7.93640689,187.29,187.23,7.93640689]
[1730979415834,0.12549,187.33,187.23,7.93640689]
[1730979416036,7.93640689,187.29,187.23,7.93640689]
[1730979418054,7.93640689,187.28,187.22,7.93640689]
[1730979418279,0.12549,187.33,187.23,31.71329089]
[1730979418280,7.93640689,187.29,187.23,31.71329089]
[1730979418436,1.59977627,187.34,187.23,31.71329089]
[1730979418641,7.93640689,187.29,187.23,31.71329089]
[1730979419671,7.93640689,187.28,187.2,6.5666]
[1730979419848,7.93640689,187.28,187.22,7.93640689]
[1730979420041,7.93640689,187.27,187.21,31.71329089]
[1730979420242,0.12549,187.32,187.21,31.71329089]
[1730979420442,5.3378,187.35,187.21,31.71329089]
[1730979420643,7.93640689,187.28,187.22,7.93640689]
[1730979420850,7.93640689,187.28,187.23,23.776884]
[1730979422860,7.93640689,187.29,187.23,31.71329089]
[1730979423655,163.95480773,187.39,187.25,31.71329089]
[1730979423961,7.93640689,187.33,187.27,23.776884]
[1730979424163,7.93640689,187.32,187.27,23.776884]
[1730979427664,7.93640689,187.33,187.27,31.71329089]
[1730979429167,7.93640689,187.36,187.3,47.46899089]
[1730979429467,5.3352,187.44,187.3,47.46899089]
[1730979429468,5.55295792,187.43,187.31,7.93640689]
[1730979429761,7.93640689,187.36,187.31,7.93640689]
[1730979430154,5.55295792,187.43,187.31,7.93640689]
[1730979430363,7.93640689,187.36,187.33,6.28]
[1730979432867,0.12549,187.42,187.33,6.28]
[1730979433158,7.93640689,187.36,187.33,6.28]
[1730979434157,7.93640689,187.35,187.33,6.28]
[1730979434559,7.93640689,187.36,187.33,6.28]
[1730979434746,0.12549,187.42,187.33,6.28]
[1730979434948,7.93640689,187.36,187.33,6.28]
[1730979435147,7.93640689,187.34,187.3,15.7557]
[1730979435349,7.93640689,187.32,187.28,6.6243]
[1730979435649,7.93640689,187.31,187.28,6.6243]
[1730979438269,7.93640689,187.34,187.29,23.776884]
[1730979438469,190.14562756,187.4,187.29,23.776884]
[1730979438470,158.4,187.4,187.29,31.71329089]
[1730979438662,7.93640689,187.36,187.3,7.93640689]
[1730979438973,7.93640689,187.37,187.31,31.71329089]
[1730979442756,7.93640689,187.35,187.31,23.776884]
[1730979442960,7.93640689,187.33,187.29,23.776884]
[1730979443288,7.93640689,187.33,187.28,6.6243]
[1730979444156,7.93640689,187.32,187.28,6.6243]
[1730979444471,7.93640689,187.33,187.28,6.6243]
[1730979444670,7.93640689,187.31,187.26,15.5809]
[1730979447084,0.12549,187.38,187.26,15.5809]
[1730979447085,7.93640689,187.3,187.26,15.5809]
[1730979447574,7.93640689,187.31,187.26,15.5809]
[1730979450466,7.93640689,187.3,187.26,15.5809]
[1730979450676,7.93640689,187.29,187.25,23.776884]
[1730979452989,7.93640689,187.3,187.25,23.776884]
[1730979457173,1.78743974,187.37,187.25,23.776884]
[1730979457383,7.93640689,187.31,187.25,23.776884]
[1730979457972,1.78743974,187.37,187.25,31.71329089]
[1730979458183,7.93640689,187.31,187.25,31.71329089]
[1730979458771,7.93640689,187.32,187.25,31.71329089]
[1730979459092,7.93640689,187.32,187.24,6.4217]
[1730979459093,7.93640689,187.3,187.24,6.4217]
[1730979459269,7.93640689,187.29,187.24,6.4217]
[1730979459776,7.93640689,187.26,187.22,16.3824]
[1730979460491,7.93640689,187.23,187.17,5.54872718]
[1730979460786,7.93640689,187.24,187.17,7.93640689]
[1730979460984,7.93640689,187.25,187.18,7.93640689]
[1730979461799,7.93640689,187.26,187.2,23.776884]
[1730979462495,7.93640689,187.28,187.21,7.93640689]
[1730979463491,7.93640689,187.28,187.22,31.71329089]
[1730979463692,7.93640689,187.28,187.22,23.776884]
[1730979463873,7.93640689,187.28,187.21,31.71329089]
[1730979466495,7.93640689,187.25,187.19,23.71710689]
[1730979466881,31.87111756,187.3,187.15,6.1312]
[1730979467087,7.93640689,187.23,187.15,6.1312]
[1730979467279,7.93640689,187.23,187.17,7.93640689]
[1730979467478,7.93640689,187.24,187.17,7.93640689]
[1730979468793,7.93640689,187.23,187.16,23.776884]
[1730979469396,7.93640689,187.23,187.18,23.776884]
[1730979470273,7.93640689,187.23,187.17,7.93640689]
[1730979470475,7.93640689,187.22,187.16,23.776884]
[1730979470690,7.93640689,187.22,187.16,31.71329089]
[1730979473395,7.93640689,187.21,187.16,23.776884]
[1730979474592,7.93640689,187.21,187.15,5.5495874]
[1730979474795,7.93640689,187.18,187.15,5.5495874]
[1730979474985,7.93640689,187.18,187.12,7.93640689]
[1730979475292,7.93640689,187.18,187.09,10.88871642]
[1730979475501,0.1,187.26,187.09,10.88871642]
[1730979475502,7.93640689,187.17,187.09,10.88871642]
[1730979475694,7.93640689,187.18,187.12,7.93640689]
[1730979476280,7.93640689,187.19,187.13,7.93640689]
[1730979476804,7.93640689,187.18,187.12,6.0266]
[1730979477005,7.93640689,187.17,187.12,6.0266]
[1730979478326,7.93640689,187.18,187.12,6.0266]
[1730979479098,7.93640689,187.18,187.12,13.96300689]
[1730979483097,7.93640689,187.19,187.13,7.93640689]
[1730979483291,160.01001523,187.27,187.14,7.93640689]
[1730979483600,7.93640689,187.2,187.14,7.93640689]
[1730979483808,7.936407,187.24,187.14,7.93640689]
[1730979484103,7.93640689,187.2,187.15,23.776884]
[1730979484698,7.93640689,187.21,187.15,31.71329089]
[1730979487703,7.93640689,187.21,187.15,23.776884]
[1730979487901,7.93640689,187.2,187.15,23.776884]
[1730979488914,7.93640689,187.21,187.15,23.776884]
[1730979489290,0.12549,187.26,187.15,46.96029089]
[1730979489600,7.93640689,187.21,187.15,46.96029089]
[1730979490615,0.12549,187.26,187.15,46.96029089]
[1730979490785,7.93640689,187.21,187.15,46.96029089]
[1730979492188,7.93640689,187.2,187.15,39.023884]
[1730979493811,7.93640689,187.21,187.15,39.023884]
[1730979495406,7.93640689,187.2,187.15,39.023884]
[1730979496210,7.93640689,187.2,187.09,10.88871642]
[1730979496413,7.93640689,187.17,187.11,7.93640689]
[1730979496591,7.93640689,187.18,187.12,7.93640689]
[1730979497812,7.93640689,187.18,187.13,23.776884]
[1730979498000,7.93640689,187.19,187.13,31.71329089]
[1730979498196,0.12549,187.24,187.13,54.10559089]
[1730979498400,7.93640689,187.2,187.14,7.93640689]
[1730979498596,7.93640689,187.19,187.1,23.776884]
[1730979498808,7.93640689,187.19,187.13,23.776884]
[1730979499412,5.3401,187.27,187.14,7.93640689]
[1730979499615,7.93640689,187.19,187.08,28.7303]
[1730979499913,7.93640689,187.18,187.13,23.776884]
[1730979500501,0.12549,187.24,187.13,31.71329089]
[1730979500699,7.93640689,187.19,187.13,31.71329089]
[1730979501298,7.93640689,187.2,187.14,7.93640689]
[1730979502225,7.93640689,187.2,187.15,23.776884]
[1730979502400,5.3401,187.26,187.15,23.776884]
[1730979502601,7.93640689,187.2,187.15,23.776884]
[1730979503132,0.12549,187.27,187.15,53.56769089]
[1730979503295,7.93640689,187.21,187.15,53.56769089]
[1730979505015,5.55045107,187.29,187.19,7.93640689]
[1730979505228,7.93640689,187.26,187.2,31.71329089]
[1730979505518,158.4,187.32,187.21,7.93640689]
[1730979505822,7.93640689,187.26,187.2,31.71329089]
[1730979506621,7.93640689,187.27,187.22,23.776884]
[1730979506820,7.93640689,187.26,187.22,23.776884]
[1730979507019,7.93640689,187.26,187.21,23.776884]
[1730979507219,7.93640689,187.27,187.21,31.71329089]
[1730979507601,7.93640689,187.26,187.21,23.776884]
[1730979509099,1.75116944,187.34,187.21,31.71329089]
[1730979509304,20.0,187.38,187.23,23.776884]
[1730979509507,7.93640689,187.29,187.23,31.71329089]
[1730979509721,0.12549,187.36,187.23,31.71329089]
[1730979509914,7.93640689,187.3,187.25,23.776884]
[1730979510725,0.12549,187.37,187.25,23.776884]